fUST/lending_fUST_20250622
["ID","MTS","AMOUNT","RATE_DAILY","PERIOD"]
[366990829,1750607442416,-151.0,0.00021917,2]
[366990830,1750607442426,-500.0,0.00021917,2]
[366990831,1750607442437,-500.0,0.00021917,2]
[366990832,1750607442447,-500.0,0.00021917,2]
[366990833,1750607442457,-509.22927698,0.00021917,2]
[366990834,1750607442467,-691.1,0.00021917,3]
[366990835,1750607442477,-460.0,0.00021917,3]
[366990836,1750607442487,-460.0,0.00021917,3]
[366990837,1750607442497,-460.0,0.00021917,3]
[366990838,1750607442508,-460.0,0.00021917,3]
[366990839,1750607442517,-175.689257,0.00021917,2]
[366990840,1750607442527,-175.689257,0.00021917,2]
[366990841,1750607442537,-460.0,0.00021917,3]
[366990842,1750607442547,-460.0,0.00021917,3]
[366990843,1750607442556,-460.0,0.00021917,3]
[366990844,1750607442566,-460.0,0.00021917,3]
[366990845,1750607442576,-151.0,0.00021917,2]
[366990846,1750607442586,-174.32312176,0.00021917,3]
[366990847,1750607442597,-460.0,0.00021917,3]
[366990848,1750607442610,-460.0,0.00021917,3]
[366990849,1750607442619,-530.96,0.00021917,3]
[366990850,1750607442629,-432.2598092,0.00021917,3]
[366990851,1750607442639,-165.053308,0.00021917,2]
[366990852,1750607442651,-460.0,0.00021917,3]
[366990853,1750607442664,-165.053308,0.00021917,2]
[366990854,1750607442674,-460.0,0.00021917,3]
[366990855,1750607442685,-430.0,0.00021917,3]
[366990856,1750607442695,-460.0,0.00021917,3]
[366990857,1750607442705,-460.0,0.00021917,3]
[366990858,1750607442716,-431.42807953,0.00021917,3]
[366990859,1750607442725,-460.0,0.00021917,3]
[366990860,1750607442735,-460.0,0.00021917,3]
[366990861,1750607442746,-460.0,0.00021917,3]
[366990862,1750607442756,-500.0,0.00021917,2]
[366990863,1750607442765,-436.21498281,0.00021917,3]
[366990864,1750607442774,-463.8633975,0.00021917,3]
[366990865,1750607442784,-443.23693444,0.00021917,3]
[366990866,1750607442794,-432.97938658,0.00021917,3]
[366990867,1750607442803,-460.0,0.00021917,3]
[366990868,1750607442813,-412.92412149,0.00021917,3]
[366990869,1750607442823,-458.40269902,0.00021917,3]
[366990870,1750607442833,-460.0,0.00021917,3]
[366990871,1750607442843,-525.647525,0.00021917,2]
[366990872,1750607442853,-444.04759383,0.00021917,3]
[366990873,1750607442863,-440.0,0.00021917,3]
[366990874,1750607442872,-460.0,0.00021917,3]
[366990875,1750607442882,-525.647525,0.00021917,2]
[366990876,1750607442891,-444.27565539,0.00021917,3]
[366990877,1750607442901,-151.0,0.00021917,2]
[366990878,1750607442910,-460.0,0.00021917,3]
[366990879,1750607442920,-460.0,0.00021917,3]
[366990880,1750607442930,-460.0,0.00021917,3]
[366990881,1750607442940,-460.0,0.00021917,3]
[366990882,1750607442950,-460.0,0.00021917,3]
[366990883,1750607442959,-460.0,0.00021917,3]
[366990884,1750607442969,-440.0,0.00021917,3]
[366990885,1750607442978,-460.0,0.00021917,3]
[366990886,1750607442988,-151.0,0.00021917,3]
[366990888,1750607442997,-151.0,0.00021917,3]
[366990889,1750607443007,-460.0,0.00021917,3]
[366990890,1750607443016,-151.0,0.00021917,3]
[366990891,1750607443026,-500.0,0.00021917,3]
[366990892,1750607443036,-597.69170077,0.00021917,3]
[366990893,1750607443046,-500.0,0.00021917,3]
[366990894,1750607443056,-460.0,0.00021917,3]
[366990895,1750607443066,-500.0,0.00021917,3]
[366990896,1750607443076,-460.0,0.00021917,3]
[366990897,1750607443086,-500.0,0.00021917,3]
[366990898,1750607443096,-460.0,0.00021917,3]
[366990899,1750607443106,-460.0,0.00021917,3]
[366990900,1750607443116,-460.0,0.00021917,3]
[366990901,1750607443125,-460.0,0.00021917,3]
[366990902,1750607443135,-460.0,0.00021917,3]
[366990903,1750607443145,-460.0,0.00021917,3]
[366990904,1750607443155,-460.0,0.00021917,3]
[366990905,1750607443165,-460.0,0.00021917,3]
[366990906,1750607443175,-679.05,0.00021917,3]
[366990907,1750607443187,-460.0,0.00021917,3]
[366990908,1750607443197,-460.0,0.00021917,3]
[366990909,1750607443207,-460.0,0.00021917,3]
[366990910,1750607443218,-460.0,0.00021917,3]
[366990911,1750607443227,-460.0,0.00021917,3]
[366990912,1750607443237,-497.28,0.00021917,3]
[366990913,1750607443247,-460.0,0.00021917,3]
[366990914,1750607443257,-460.0,0.00021917,3]
[366990915,1750607443266,-460.0,0.00021917,3]
[366990916,1750607443276,-460.0,0.00021917,3]
[366990917,1750607443286,-460.0,0.00021917,3]
[366990918,1750607443297,-576.41141079,0.00021917,3]
[366990919,1750607443306,-460.0,0.00021917,3]
[366990920,1750607443315,-460.0,0.00021917,3]
[366990921,1750607443325,-538.43952244,0.00021917,3]
[366990922,1750607443335,-460.0,0.00021917,3]
[366990923,1750607443346,-460.0,0.00021917,3]
[366990924,1750607443359,-460.0,0.00021917,3]
[366990925,1750607443369,-460.0,0.00021917,3]
[366990926,1750607443378,-460.0,0.00021917,3]
[366990927,1750607443388,-460.0,0.00021917,3]
[366990928,1750607443400,-460.0,0.00021917,3]
[366990929,1750607443409,-460.0,0.00021917,3]
[366990930,1750607443419,-460.0,0.00021917,3]
[366990931,1750607443433,-460.0,0.00021917,3]
[366990932,1750607443443,-460.0,0.00021917,3]
[366990933,1750607443453,-414.49394333,0.00021917,3]
[366990934,1750607443462,-460.0,0.00021917,3]
[366990935,1750607443472,-460.0,0.00021917,3]
[366990936,1750607443482,-460.0,0.00021917,3]
[366990937,1750607443491,-460.0,0.00021917,3]
[366990938,1750607443501,-460.0,0.00021917,3]
[366990939,1750607443511,-517.2746004,0.00021917,3]
[366990940,1750607443521,-460.0,0.00021917,3]
[366990941,1750607443530,-463.7113335,0.00021917,3]
[366990942,1750607443540,-500.0,0.00021917,2]
[366990943,1750607443549,-460.0,0.00021917,3]
[366990944,1750607443560,-460.0,0.00021917,3]
[366990945,1750607443569,-460.0,0.00021917,3]
[366990946,1750607443580,-359.0,0.00021917,3]
[366990947,1750607443590,-460.0,0.00021917,3]
[366990948,1750607443600,-535.28856919,0.00021917,3]
[366990949,1750607443610,-460.0,0.00021917,3]
[366990950,1750607443620,-460.0,0.00021917,3]
[366990951,1750607443629,-460.0,0.00021917,3]
[366990952,1750607443640,-994.69,0.00021917,3]
[366990953,1750607443649,-432.95503368,0.00021917,3]
[366990954,1750607443659,-461.60323561,0.00021917,3]
[366990955,1750607443668,-460.0,0.00021917,3]
[366990956,1750607443678,-460.0,0.00021917,3]
[366990957,1750607443689,-1686.57,0.00021917,2]
[366990958,1750607443699,-460.0,0.00021917,3]
[366990959,1750607443709,-450.0,0.00021917,3]
[366990960,1750607443718,-352.9864694,0.00021917,3]
[366990961,1750607443729,-465.47438979,0.00021917,3]
[366990962,1750607443740,-460.00535637,0.00021917,3]
[366990963,1750607443749,-460.0,0.00021917,3]
[366990964,1750607443761,-460.0,0.00021917,3]
[366990965,1750607443771,-460.0,0.00021917,3]
[366990966,1750607443781,-460.0,0.00021917,2]
[366990967,1750607443791,-460.0,0.00021917,3]
[366990968,1750607443801,-460.0,0.00021917,3]
[366990969,1750607443810,-460.0,0.00021917,3]
[366990970,1750607443820,-512.01797144,0.00021917,3]
[366990971,1750607443831,-401.10773965,0.00021917,3]
[366990972,1750607443841,-1656.43,0.00021917,3]
[366990973,1750607443851,-1656.43,0.00021917,3]
[366990974,1750607443861,-1656.43,0.00021917,3]
[366990975,1750607443871,-1656.43,0.00021917,3]
[366990976,1750607443880,-1656.43,0.00021917,3]
[366990977,1750607443890,-1656.43,0.00021917,3]
[366990978,1750607443901,-1656.43,0.00021917,3]
[366990979,1750607443910,-1656.43,0.00021917,3]
[366990980,1750607443920,-1656.43,0.00021917,3]
[366990981,1750607443931,-1656.43,0.00021917,3]
[366990982,1750607443940,-1656.43,0.00021917,3]
[366990983,1750607443950,-1656.43,0.00021917,3]
[366990984,1750607443960,-1656.43,0.00021917,3]
[366990985,1750607443970,-1656.43,0.00021917,3]
[366990986,1750607443979,-460.0,0.00021917,3]
[366990987,1750607443990,-1656.43,0.00021917,3]
[366990988,1750607444000,-1656.43,0.00021917,3]
[366990989,1750607444009,-1656.43,0.00021917,3]
[366990990,1750607444019,-1656.43,0.00021917,3]
[366990991,1750607444029,-1656.43,0.00021917,3]
[366990992,1750607444038,-460.0,0.00021917,3]
[366990993,1750607444048,-460.0,0.00021917,3]
[366990994,1750607444058,-430.0,0.00021917,3]
[366990995,1750607444068,-460.0,0.00021917,3]
[366990996,1750607444078,-460.0,0.00021917,3]
[366990997,1750607444087,-445.99179375,0.00021917,3]
[366990998,1750607444097,-251.21759301,0.00021917,3]
[366990999,1750607444107,-460.0,0.00021917,3]
[366991000,1750607444117,-1656.43,0.00021917,3]
[366991001,1750607444128,-460.0,0.00021917,3]
[366991002,1750607444138,-1656.43,0.00021917,3]
[366991003,1750607444148,-1656.43,0.00021917,3]
[366991004,1750607444158,-1656.43,0.00021917,3]
[366991005,1750607444167,-300.0,0.00021917,3]
[366991006,1750607444179,-1656.55675646,0.00021917,3]
[366991007,1750607444188,-509.43803525,0.00021917,3]
[366991008,1750607444198,-460.0,0.00021917,3]
[366991009,1750607444208,-1571.08,0.00021917,3]
[366991010,1750607444218,-462.61993472,0.00021917,3]
[366991011,1750607444227,-460.0,0.00021917,3]
[366991012,1750607444237,-487.08390594,0.00021917,3]
[366991013,1750607444247,-460.0,0.00021917,3]
[366991014,1750607444257,-400.0,0.00021917,3]
[366991015,1750607444266,-460.0,0.00021917,3]
[366991016,1750607444276,-460.0,0.00021917,3]
[366991017,1750607444285,-460.0,0.00021917,3]
[366991018,1750607444295,-462.97869497,0.00021917,3]
[366991019,1750607444306,-519.41606401,0.00021917,3]
[366991020,1750607444317,-460.0,0.00021917,3]
[366991021,1750607444326,-460.0,0.00021917,3]
[366991022,1750607444336,-460.0,0.00021917,3]
[366991023,1750607444349,-460.0,0.00021917,3]
[366991024,1750607444359,-460.0,0.00021917,3]
[366991025,1750607444369,-460.0,0.00021917,3]
[366991026,1750607444379,-462.00208149,0.00021917,3]
[366991027,1750607444391,-460.0,0.00021917,3]
[366991028,1750607444400,-460.0,0.00021917,3]
[366991029,1750607444410,-370.0,0.00021917,3]
[366991030,1750607444420,-460.0,0.00021917,3]
[366991031,1750607444430,-460.0,0.00021917,3]
[366991032,1750607444440,-460.0,0.00021917,3]
[366991033,1750607444495,-460.0,0.00021917,3]
[366991034,1750607444505,-460.0,0.00021917,3]
[366991035,1750607444515,-460.0,0.00021917,3]
[366991036,1750607444526,-460.0,0.00021917,3]
[366991037,1750607444535,-504.7,0.00021917,3]
[366991038,1750607444545,-460.0,0.00021917,3]
[366991039,1750607444554,-407.50786162,0.00021917,3]
[366991040,1750607444564,-460.0,0.00021917,3]
[366991041,1750607444573,-460.0,0.00021917,3]
[366991042,1750607444582,-460.0,0.00021917,3]
[366991043,1750607444592,-460.0,0.00021917,3]
[366991044,1750607444602,-460.0,0.00021917,3]
[366991045,1750607444612,-513.32025276,0.00021917,3]
[366991046,1750607444622,-460.0,0.00021917,3]
[366991047,1750607444631,-460.0,0.00021917,3]
[366991048,1750607444641,-460.0,0.00021917,3]
[366991049,1750607444650,-507.63682359,0.00021917,3]
[366991050,1750607444659,-460.0,0.00021917,3]
[366991051,1750607444669,-460.0,0.00021917,3]
[366991052,1750607444678,-404.77762324,0.00021917,3]
[366991053,1750607444688,-460.0,0.00021917,3]
[366991054,1750607444697,-510.23,0.00021917,3]
[366991055,1750607444707,-460.0,0.00021917,3]
[366991056,1750607444716,-460.0,0.00021917,3]
[366991057,1750607444725,-460.0,0.00021917,3]
[366991058,1750607444735,-460.0,0.00021917,3]
[366991059,1750607444744,-460.0,0.00021917,3]
[366991060,1750607444754,-401.71795561,0.00021917,3]
[366991061,1750607444763,-460.0,0.00021917,3]
[366991062,1750607444773,-460.0,0.00021917,3]
[366991063,1750607444783,-460.0,0.00021917,3]
[366991065,1750607444792,-599.398638,0.00021917,3]
[366991067,1750607444802,-460.0,0.00021917,3]
[366991068,1750607444812,-607.07088979,0.00021917,2]
[366991069,1750607444822,-430.0,0.00021917,3]
[366991071,1750607444832,-500.0,0.00021917,3]
[366991073,1750607444842,-460.0,0.00021917,3]
[366991075,1750607444853,-460.0,0.00021917,3]
[366991076,1750607444863,-500.0,0.00021917,3]
[366991077,1750607444872,-460.0,0.00021917,3]
[366991078,1750607444882,-226.38021177,0.00021917,3]
[366991079,1750607444892,-460.0,0.00021917,3]
[366991080,1750607444901,-271.53650538,0.00021917,3]
[366991081,1750607444911,-151.0,0.00021917,3]
[366991083,1750607444920,-460.0,0.00021917,3]
[366991086,1750607444931,-500.0,0.00021917,3]
[366991087,1750607444940,-151.0,0.00021917,3]
[366991088,1750607444950,-451.57756083,0.00021917,3]
[366991089,1750607444959,-260.56839692,0.00021917,3]
[366991090,1750607444968,-401.69998816,0.00021917,3]
[366991091,1750607444978,-460.0,0.00021917,3]
[366991092,1750607444987,-460.0,0.00021917,3]
[366991093,1750607444996,-460.0,0.00021917,3]
[366991094,1750607445006,-460.0,0.00021917,3]
[366991095,1750607445016,-2451.8,0.00021917,3]
[366991096,1750607445025,-460.0,0.00021917,3]
[366991097,1750607445035,-460.0,0.00021917,3]
[366991098,1750607445045,-460.0,0.00021917,3]
[366991099,1750607445055,-460.0,0.00021917,3]
[366991100,1750607445065,-460.0,0.00021917,3]
[366991101,1750607445075,-500.0,0.00021917,3]
[366991102,1750607445085,-431.7185109,0.00021917,3]
[366991103,1750607445094,-460.0,0.00021917,3]
[366991104,1750607445105,-775.38,0.00021917,3]
[366991105,1750607445115,-460.0,0.00021917,3]
[366991106,1750607445124,-460.0,0.00021917,3]
[366991107,1750607445134,-213.59462818,0.00021917,3]
[366991108,1750607445143,-460.0,0.00021917,3]
[366991109,1750607445153,-460.0,0.00021917,3]
[366991110,1750607445163,-237.94133473,0.00021917,3]
[366991111,1750607445172,-570.36,0.00021917,3]
[366991112,1750607445183,-460.0,0.00021917,3]
[366991113,1750607445193,-467.24,0.00021917,3]
[366991114,1750607445203,-1980.62,0.00021917,3]
[366991115,1750607445213,-365.82918022,0.00021917,3]
[366991116,1750607445223,-460.0,0.00021917,3]
[366991117,1750607445233,-460.0,0.00021917,3]
[366991118,1750607445244,-460.0,0.00021917,3]
[366991119,1750607445254,-860.83,0.00021917,3]
[366991120,1750607445263,-500.0,0.00021917,3]
[366991121,1750607445273,-500.0,0.00021917,3]
[366991122,1750607445283,-500.0,0.00021917,3]
[366991123,1750607445293,-500.0,0.00021917,3]
[366991124,1750607445303,-500.0,0.00021917,3]
[366991125,1750607445313,-500.0,0.00021917,3]
[366991126,1750607445323,-500.0,0.00021917,3]
[366991127,1750607445333,-500.0,0.00021917,3]
[366991128,1750607445345,-500.0,0.00021917,3]
[366991129,1750607445356,-500.0,0.00021917,3]
[366991130,1750607445366,-500.0,0.00021917,3]
[366991131,1750607445376,-500.0,0.00021917,3]
[366991133,1750607445387,-460.0,0.00021917,3]
[366991134,1750607445397,-460.0,0.00021917,3]
[366991135,1750607445406,-500.0,0.00021917,3]
[366991136,1750607445416,-484.93,0.00021917,3]
[366991137,1750607445428,-500.0,0.00021917,3]
[366991138,1750607445438,-500.0,0.00021917,3]
[366991139,1750607445447,-500.0,0.00021917,3]
[366991140,1750607445456,-500.0,0.00021917,3]
[366991141,1750607445466,-500.0,0.00021917,3]
[366991142,1750607445476,-500.0,0.00021917,3]
[366991143,1750607445485,-532.26312975,0.00021917,3]
[366991145,1750607445495,-460.0,0.00021917,3]
[366991147,1750607445504,-672.36,0.00021917,3]
[366991149,1750607445514,-160.0,0.00021917,3]
[366991151,1750607445523,-846.09,0.00021917,3]
[366991153,1750607445533,-840.84,0.00021917,3]
[366991155,1750607445544,-460.0,0.00021917,3]
[366991157,1750607445554,-565.09,0.00021917,3]
[366991159,1750607445565,-460.0,0.00021917,3]
[366991161,1750607445575,-2246.48,0.00021917,3]
[366991163,1750607445585,-460.0,0.00021917,3]
[366991165,1750607445595,-500.0,0.00021917,3]
[366991167,1750607445605,-460.0,0.00021917,3]
[366991169,1750607445615,-525.4624686,0.00021917,3]
[366991171,1750607445625,-460.0,0.00021917,3]
[366991173,1750607445634,-8579.39,0.00021917,3]
[366991175,1750607445644,-460.0,0.00021917,3]
[366991177,1750607445653,-518.70419911,0.00021917,3]
[366991179,1750607445663,-460.0,0.00021917,3]
[366991180,1750607445672,-460.0,0.00021917,3]
[366991181,1750607445683,-460.0,0.00021917,3]
[366991182,1750607445693,-968.01,0.00021917,3]
[366991183,1750607445702,-500.0,0.00021917,3]
[366991184,1750607445711,-4394.68,0.00021917,3]
[366991185,1750607445722,-460.0,0.00021917,3]
[366991186,1750607445732,-3744.84,0.00021917,3]
[366991187,1750607445741,-619.37,0.00021917,3]
[366991188,1750607445751,-460.0,0.00021917,3]
[366991189,1750607445762,-400.0,0.00021917,3]
[366991190,1750607445772,-5135.3,0.00021917,3]
[366991191,1750607445783,-460.0,0.00021917,3]
[366991192,1750607445794,-460.0,0.00021917,3]
[366991193,1750607445805,-460.0,0.00021917,3]
[366991194,1750607445818,-500.0,0.00021917,3]
[366991196,1750607445830,-151.0,0.00021917,2]
[366991198,1750607445844,-1764.47,0.00021917,3]
[366991200,1750607445855,-500.0,0.00021917,3]
[366991201,1750607445864,-151.0,0.00021917,2]
[366991203,1750607445878,-500.0,0.00021917,3]
[366991205,1750607445890,-460.0,0.00021917,3]
[366991206,1750607445901,-460.0,0.00021917,3]
[366991207,1750607445911,-460.0,0.00021917,3]
[366991208,1750607445920,-500.0,0.00021917,3]
[366991209,1750607445931,-460.0,0.00021917,3]
[366991210,1750607445941,-460.0,0.00021917,3]
[366991211,1750607445951,-460.80636229,0.00021917,3]
[366991212,1750607445961,-460.0,0.00021917,3]
[366991213,1750607445971,-460.0,0.00021917,3]
[366991214,1750607445982,-533.81,0.00021917,3]
[366991215,1750607445991,-4332.06,0.00021917,3]
[366991216,1750607446000,-460.0,0.00021917,3]
[366991217,1750607446010,-460.0,0.00021917,3]
[366991218,1750607446020,-460.0,0.00021917,3]
[366991219,1750607446029,-460.0,0.00021917,3]
[366991220,1750607446039,-460.0,0.00021917,3]
[366991221,1750607446048,-460.0,0.00021917,3]
[366991222,1750607446057,-460.0,0.00021917,3]
[366991223,1750607446066,-460.0,0.00021917,3]
[366991224,1750607446075,-1141.22,0.00021917,3]
[366991225,1750607446085,-460.0,0.00021917,3]
[366991226,1750607446094,-460.0,0.00021917,3]
[366991227,1750607446104,-460.0,0.00021917,3]
[366991228,1750607446113,-460.0,0.00021917,3]
[366991229,1750607446123,-460.0,0.00021917,3]
[366991230,1750607446132,-460.0,0.00021917,3]
[366991231,1750607446141,-460.0,0.00021917,3]
[366991232,1750607446151,-587.45302948,0.00021917,3]
[366991233,1750607446160,-460.0,0.00021917,3]
[366991234,1750607446171,-460.0,0.00021917,3]
[366991235,1750607446181,-460.0,0.00021917,3]
[366991236,1750607446191,-460.0,0.00021917,3]
[366991237,1750607446201,-1156.28,0.00021917,3]
[366991238,1750607446210,-460.0,0.00021917,3]
[366991239,1750607446220,-460.0,0.00021917,3]
[366991240,1750607446229,-460.0,0.00021917,3]
[366991241,1750607446239,-460.0,0.00021917,3]
[366991242,1750607446249,-460.0,0.00021917,3]
[366991243,1750607446258,-992.06,0.00021917,3]
[366991244,1750607446267,-460.0,0.00021917,3]
[366991245,1750607446277,-460.0,0.00021917,3]
[366991246,1750607446287,-460.0,0.00021917,3]
[366991248,1750607446298,-509.59139264,0.00021917,3]
[366991250,1750607446307,-460.0,0.00021917,3]
[366991252,1750607446317,-450.52023403,0.00021917,3]
[366991254,1750607446327,-460.0,0.00021917,3]
[366991255,1750607446337,-460.0,0.00021917,3]
[366991256,1750607446349,-6071.98,0.00021917,3]
[366991257,1750607446359,-463.45071398,0.00021917,3]
[366991258,1750607446368,-548.09,0.00021917,3]
[366991259,1750607446378,-653.68,0.00021917,3]
[366991260,1750607446388,-478.63,0.00021917,3]
[366991261,1750607446397,-7964.89,0.00021917,3]
[366991262,1750607446407,-460.0,0.00021917,3]
[366991263,1750607446416,-460.0,0.00021917,3]
[366991265,1750607446429,-9870.48,0.00021917,3]
[366991266,1750607446439,-460.0,0.00021917,3]
[366991267,1750607446448,-460.0,0.00021917,3]
[366991268,1750607446458,-357.66370567,0.00021917,3]
[366991269,1750607446468,-460.0,0.00021917,3]
[366991270,1750607446477,-764.94,0.00021917,3]
[366991271,1750607446487,-780.51,0.00021917,3]
[366991272,1750607446498,-1659.51,0.00021917,3]
[366991273,1750607446508,-460.0,0.00021917,3]
[366991274,1750607446517,-460.0,0.00021917,3]
[366991275,1750607446527,-460.0,0.00021917,3]
[366991276,1750607446537,-460.0,0.00021917,3]
[366991277,1750607446547,-460.0,0.00021917,3]
[366991278,1750607446557,-1092.06,0.00021917,3]
[366991279,1750607446567,-1584.64,0.00021917,3]
[366991280,1750607446576,-400.0,0.00021917,3]
[366991281,1750607446586,-460.0,0.00021917,3]
[366991282,1750607446595,-460.95,0.00021917,3]
[366991283,1750607446605,-395.65287359,0.00021917,3]
[366991285,1750607446615,-430.81839586,0.00021917,3]
[366991287,1750607446625,-460.0,0.00021917,3]
[366991288,1750607446635,-9566.04,0.00021917,3]
[366991289,1750607446646,-460.0,0.00021917,3]
[366991290,1750607446656,-460.0,0.00021917,3]
[366991291,1750607446665,-433.4444573,0.00021917,3]
[366991292,1750607446676,-747.81,0.00021917,3]
[366991293,1750607446688,-3441.1,0.00021917,3]
[366991295,1750607446698,-460.0,0.00021917,3]
[366991297,1750607446708,-460.0,0.00021917,3]
[366991298,1750607446718,-151.0,0.00021917,3]
[366991299,1750607446728,-440.0,0.00021917,3]
[366991300,1750607446740,-460.0,0.00021917,3]
[366991301,1750607446750,-460.0,0.00021917,3]
[366991302,1750607446759,-151.0,0.00021917,3]
[366991303,1750607446769,-460.0,0.00021917,3]
[366991304,1750607446779,-460.0,0.00021917,3]
[366991305,1750607446789,-460.0,0.00021917,3]
[366991306,1750607446798,-9968.68,0.00021917,3]
[366991307,1750607446808,-691.13,0.00021917,3]
[366991308,1750607446818,-151.0,0.00021917,3]
[366991309,1750607446828,-460.0,0.00021917,3]
[366991310,1750607446837,-151.0,0.00021917,3]
[366991311,1750607446847,-498.44,0.00021917,3]
[366991312,1750607446857,-460.0,0.00021917,3]
[366991313,1750607446867,-151.0,0.00021917,3]
[366991315,1750607446876,-574.98,0.00021917,3]
[366991317,1750607446886,-460.0,0.00021917,3]
[366991319,1750607446895,-460.0,0.00021917,3]
[366991321,1750607446905,-1411.97,0.00021917,3]
[366991323,1750607446914,-1056.39,0.00021917,3]
[366991325,1750607446924,-151.0,0.00021917,3]
[366991327,1750607446934,-846.39664074,0.00021917,3]
[366991329,1750607446943,-460.0,0.00021917,3]
[366991331,1750607446953,-492.12,0.00021917,3]
[366991333,1750607446962,-460.0,0.00021917,3]
[366991335,1750607446971,-500.0,0.00021917,3]
[366991337,1750607446980,-1274.48,0.00021917,3]
[366991339,1750607446989,-151.0,0.00021917,2]
[366991341,1750607446999,-3746.93,0.00021917,3]
[366991342,1750607447008,-500.0,0.00021917,3]
[366991343,1750607447018,-460.0,0.00021917,3]
[366991344,1750607447027,-460.0,0.00021917,3]
[366991345,1750607447036,-460.0,0.00021917,3]
[366991346,1750607447046,-203.08908523,0.00021917,3]
[366991347,1750607447056,-460.0,0.00021917,3]
[366991348,1750607447065,-460.0,0.00021917,3]
[366991349,1750607447075,-273.84009724,0.00021917,3]
[366991350,1750607447084,-460.0,0.00021917,3]
[366991351,1750607447094,-460.0,0.00021917,3]
[366991352,1750607447104,-552.84,0.00021917,3]
[366991353,1750607447113,-842.93,0.00021917,3]
[366991354,1750607447123,-460.0,0.00021917,3]
[366991355,1750607447132,-768.16,0.00021917,3]
[366991356,1750607447142,-460.0,0.00021917,3]
[366991357,1750607447153,-460.0,0.00021917,3]
[366991358,1750607447163,-460.0,0.00021917,3]
[366991359,1750607447172,-460.0,0.00021917,3]
[366991360,1750607447183,-460.0,0.00021917,3]
[366991361,1750607447192,-10437.28,0.00021917,3]
[366991362,1750607447203,-995.83,0.00021917,3]
[366991363,1750607447213,-1288.14,0.00021917,3]
[366991364,1750607447222,-471.93,0.00021917,3]
[366991365,1750607447231,-460.0,0.00021917,3]
[366991367,1750607447240,-460.0,0.00021917,3]
[366991368,1750607447251,-527.50701064,0.00021917,3]
[366991369,1750607447260,-460.0,0.00021917,3]
[366991370,1750607447269,-460.0,0.00021917,3]
[366991371,1750607447279,-543.81,0.00021917,3]
[366991372,1750607447289,-460.0,0.00021917,3]
[366991373,1750607447298,-5379.12,0.00021917,3]
[366991374,1750607447308,-460.0,0.00021917,3]
[366991375,1750607447318,-405.68467905,0.00021917,3]
[366991376,1750607447327,-1412.43,0.00021917,3]
[366991377,1750607447337,-460.0,0.00021917,3]
[366991378,1750607447350,-462.41176606,0.00021917,3]
[366991379,1750607447359,-460.0,0.00021917,3]
[366991380,1750607447368,-460.0,0.00021917,3]
[366991381,1750607447377,-460.0,0.00021917,3]
[366991382,1750607447389,-478.37,0.00021917,3]
[366991383,1750607447399,-470.7,0.00021917,3]
[366991384,1750607447408,-2575.0,0.00021917,3]
[366991385,1750607447419,-460.0,0.00021917,3]